[Event "*** Titled Tuesday Blitz"]
[Site "Chess.com"]
[Date "2020.10.27"]
[Round "8"]
[White "swimmerchess"]
[Black "tlomigtlis"]
[Result "0-1"]
[WhiteElo "2792"]
[BlackElo "2606"]
[TimeControl "180+1"]
[EndTime "11:29:30 PDT"]
[Termination "tlomigtlis won by resignation"]

1. e4 {[%clk 0:03:00.9]} 1... c5 {[%clk 0:02:59.5]} 2. Nf3 {[%clk 0:03:00.9]}
2... d6 {[%clk 0:02:59.6]} 3. d4 {[%clk 0:03:00.6]} 3... cxd4 {[%clk 0:03:00.5]}
4. Nxd4 {[%clk 0:03:01.5]} 4... Nf6 {[%clk 0:03:00.3]} 5. Nc3 {[%clk 0:03:02.1]}
5... a6 {[%clk 0:02:59.7]} 6. Bg5 {[%clk 0:03:02.4]} 6... Nbd7 {[%clk
0:02:59.3]} 7. Bc4 {[%clk 0:03:01.7]} 7... Qb6 {[%clk 0:02:59]} 8. O-O {[%clk
0:03:00.7]} 8... Qxb2 {[%clk 0:02:56.6]} 9. Nd5 {[%clk 0:03:01]} 9... Nxd5
{[%clk 0:02:42.9]} 10. Rb1 {[%clk 0:03:01.4]} 10... Qc3 {[%clk 0:02:23.2]} 11.
Bxd5 {[%clk 0:03:00.8]} 11... e6 {[%clk 0:02:18.7]} 12. Bxe6 {[%clk 0:01:46.1]}
12... fxe6 {[%clk 0:02:19.6]} 13. Nxe6 {[%clk 0:01:47]} 13... Ne5 {[%clk
0:01:52.4]} 14. Qd5 {[%clk 0:01:33.5]} 14... Be7 {[%clk 0:01:36.4]} 15. Nxg7+
{[%clk 0:01:04]} 15... Kf8 {[%clk 0:01:36]} 16. Bh6 {[%clk 0:00:56.4]} 16... Ng4
{[%clk 0:01:28.9]} 17. Ne6+ {[%clk 0:00:40.3]} 17... Ke8 {[%clk 0:01:17.8]} 18.
Qh5+ {[%clk 0:00:39.3]} 18... Kd7 {[%clk 0:01:15]} 19. Qxg4 {[%clk 0:00:39.4]}
19... Kc6 {[%clk 0:01:07.5]} 20. Rb3 {[%clk 0:00:31.3]} 20... Qe5 {[%clk
0:01:04.3]} 21. Qg7 {[%clk 0:00:16.9]} 21... Bxe6 {[%clk 0:00:51.9]} 22. Qxe7
{[%clk 0:00:16]} 22... Bxb3 {[%clk 0:00:51.8]} 23. Qxe5 {[%clk 0:00:16.9]} 23...
dxe5 {[%clk 0:00:51.3]} 24. axb3 {[%clk 0:00:17.8]} 24... Rad8 {[%clk
0:00:49.7]} 25. g3 {[%clk 0:00:17.5]} 25... Rd6 {[%clk 0:00:48.1]} 26. Be3
{[%clk 0:00:16.6]} 26... Re8 {[%clk 0:00:46.4]} 27. Kg2 {[%clk 0:00:16.2]} 27...
b5 {[%clk 0:00:45]} 28. Ra1 {[%clk 0:00:15.5]} 28... Kb7 {[%clk 0:00:44.6]} 29.
c4 {[%clk 0:00:15]} 29... Ra8 {[%clk 0:00:35.3]} 30. c5 {[%clk 0:00:14.4]} 30...
Rd3 {[%clk 0:00:35.2]} 31. b4 {[%clk 0:00:12.6]} 31... Rb3 {[%clk 0:00:33.6]}
32. Rd1 {[%clk 0:00:12.5]} 32... Rc8 {[%clk 0:00:31.8]} 33. Rd7+ {[%clk
0:00:05.7]} 33... Rc7 {[%clk 0:00:31.5]} 34. Rd6 {[%clk 0:00:04.8]} 34... Rc6
{[%clk 0:00:19]} 35. Rd5 {[%clk 0:00:03.7]} 35... Rxb4 {[%clk 0:00:18.5]} 36.
Rxe5 {[%clk 0:00:03.6]} 36... Rc4 {[%clk 0:00:19]} 37. f4 {[%clk 0:00:02.4]}
37... b4 {[%clk 0:00:19.1]} 38. Kf3 {[%clk 0:00:02.7]} 38... b3 {[%clk
0:00:19.3]} 39. Re7+ {[%clk 0:00:03]} 39... Rc7 {[%clk 0:00:19.1]} 40. Re6
{[%clk 0:00:03.4]} 40... Rb4 {[%clk 0:00:17.7]} 41. c6+ {[%clk 0:00:03.2]} 41...
Rxc6 {[%clk 0:00:16]} 42. Re7+ {[%clk 0:00:03.7]} 42... Rc7 {[%clk 0:00:16.3]}
43. Rxc7+ {[%clk 0:00:03.9]} 43... Kxc7 {[%clk 0:00:17.2]} 44. Bc1 {[%clk
0:00:04.5]} 44... b2 {[%clk 0:00:15.7]} 45. Bxb2 {[%clk 0:00:05.1]} 45... Rxb2
{[%clk 0:00:16.6]} 46. f5 {[%clk 0:00:06]} 46... a5 {[%clk 0:00:17.1]} 47. f6
{[%clk 0:00:06]} 47... Kd6 {[%clk 0:00:17.5]} 48. e5+ {[%clk 0:00:06.3]} 48...
Ke6 {[%clk 0:00:17.4]} 0-1

[Event "*** Titled Tuesday Blitz"]
[Site "Chess.com"]
[Date "2020.10.27"]
[Round "8"]
[White "GigaQuparadze"]
[Black "mishanick"]
[Result "1-0"]
[WhiteElo "2850"]
[BlackElo "2980"]
[TimeControl "180+1"]
[EndTime "11:29:32 PDT"]
[Termination "GigaQuparadze won by resignation"]

1. e4 {[%clk 0:03:00.9]} 1... c5 {[%clk 0:02:50.2]} 2. Ne2 {[%clk 0:03:01.2]}
2... d6 {[%clk 0:02:49.7]} 3. g3 {[%clk 0:03:00.7]} 3... Nc6 {[%clk 0:02:48.7]}
4. Bg2 {[%clk 0:03:00.7]} 4... e5 {[%clk 0:02:49.3]} 5. c3 {[%clk 0:03:00.7]}
5... Bg4 {[%clk 0:02:49.4]} 6. h3 {[%clk 0:02:56.7]} 6... Bh5 {[%clk 0:02:49.9]}
7. g4 {[%clk 0:02:55.5]} 7... Bg6 {[%clk 0:02:50.2]} 8. d4 {[%clk 0:02:55.9]}
8... cxd4 {[%clk 0:02:48.4]} 9. cxd4 {[%clk 0:02:56.8]} 9... h5 {[%clk
0:02:48.7]} 10. g5 {[%clk 0:02:54.9]} 10... h4 {[%clk 0:02:39.7]} 11. d5 {[%clk
0:02:52.1]} 11... Na5 {[%clk 0:02:38.1]} 12. Qa4+ {[%clk 0:02:49.7]} 12... Ke7
{[%clk 0:02:36.1]} 13. f4 {[%clk 0:02:45.9]} 13... b6 {[%clk 0:02:28.5]} 14.
fxe5 {[%clk 0:02:40.6]} 14... dxe5 {[%clk 0:02:29.4]} 15. Bd2 {[%clk 0:02:40.3]}
15... Qd7 {[%clk 0:02:28.4]} 16. Qa3+ {[%clk 0:02:23.9]} 16... Ke8 {[%clk
0:02:26.6]} 17. Qd3 {[%clk 0:02:23.9]} 17... Rc8 {[%clk 0:02:24.2]} 18. Bc3
{[%clk 0:02:16.9]} 18... Bd6 {[%clk 0:02:18.5]} 19. Nd2 {[%clk 0:02:17]} 19...
Ne7 {[%clk 0:02:17.7]} 20. O-O {[%clk 0:02:14.7]} 20... Nb7 {[%clk 0:02:09.7]}
21. Kh1 {[%clk 0:02:08.5]} 21... Nc5 {[%clk 0:02:09.3]} 22. Qe3 {[%clk
0:02:08.9]} 22... Qb5 {[%clk 0:02:08.6]} 23. b3 {[%clk 0:02:03.6]} 23... Qd3
{[%clk 0:02:03.5]} 24. Qxd3 {[%clk 0:01:57.1]} 24... Nxd3 {[%clk 0:02:04.4]} 25.
Nc4 {[%clk 0:01:57.7]} 25... Kd7 {[%clk 0:01:43.9]} 26. Rad1 {[%clk 0:01:56.7]}
26... Rxc4 {[%clk 0:01:44.1]} 27. bxc4 {[%clk 0:01:53]} 27... Nc5 {[%clk
0:01:44.6]} 28. Bb4 {[%clk 0:01:51.3]} 28... Nxe4 {[%clk 0:01:43.8]} 29. a3
{[%clk 0:01:42.6]} 29... Nxg5 {[%clk 0:01:28.1]} 30. Nc3 {[%clk 0:01:38.1]}
30... Nf5 {[%clk 0:01:27.1]} 31. Rfe1 {[%clk 0:01:31.5]} 31... f6 {[%clk
0:01:21.6]} 32. Nb5 {[%clk 0:01:30.3]} 32... a6 {[%clk 0:01:20.6]} 33. Nxd6
{[%clk 0:01:26]} 33... Nxd6 {[%clk 0:01:21.5]} 34. c5 {[%clk 0:01:25.9]} 34...
bxc5 {[%clk 0:01:21.4]} 35. Bxc5 {[%clk 0:01:26.8]} 35... Rc8 {[%clk 0:01:21.1]}
36. Rc1 {[%clk 0:01:18.3]} 36... Nge4 {[%clk 0:01:20.6]} 37. Bg1 {[%clk
0:01:14.4]} 37... Ng3+ {[%clk 0:01:17.7]} 38. Kh2 {[%clk 0:01:14.2]} 38... Bc2
{[%clk 0:01:12.5]} 39. Bf2 {[%clk 0:01:11.3]} 39... Rc3 {[%clk 0:01:08.2]} 40.
Re3 {[%clk 0:01:11.1]} 40... Rxe3 {[%clk 0:01:00.5]} 41. Bxe3 {[%clk 0:01:12]}
41... Ba4 {[%clk 0:00:58.4]} 42. Bb6 {[%clk 0:01:08.4]} 42... Nde4 {[%clk
0:00:51.8]} 43. Rc7+ {[%clk 0:01:04.5]} 43... Kd6 {[%clk 0:00:51.9]} 44. Rxg7
{[%clk 0:01:04.8]} 44... Kxd5 {[%clk 0:00:52.6]} 45. Rg4 {[%clk 0:01:04.9]}
45... f5 {[%clk 0:00:46.6]} 46. Rxh4 {[%clk 0:01:04.9]} 46... f4 {[%clk
0:00:47.2]} 47. Bc7 {[%clk 0:00:57.2]} 47... Bd1 {[%clk 0:00:27.4]} 48. Rh8
{[%clk 0:00:53.4]} 48... Kc6 {[%clk 0:00:16.3]} 49. Bxe5 {[%clk 0:00:51.5]}
49... f3 {[%clk 0:00:17.2]} 50. Bxg3 {[%clk 0:00:51.1]} 50... fxg2 {[%clk
0:00:18.1]} 51. Kxg2 {[%clk 0:00:51.5]} 51... Bb3 {[%clk 0:00:17.6]} 52. h4
{[%clk 0:00:51.4]} 52... Bd5 {[%clk 0:00:16.6]} 53. Kh2 {[%clk 0:00:51.7]} 53...
Nd2 {[%clk 0:00:16.4]} 54. h5 {[%clk 0:00:50.3]} 54... Nf1+ {[%clk 0:00:16.7]}
55. Kh3 {[%clk 0:00:50.5]} 55... Be6+ {[%clk 0:00:17.2]} 56. Kh4 {[%clk
0:00:50.6]} 56... Ne3 {[%clk 0:00:17.8]} 57. Kg5 {[%clk 0:00:49.6]} 57... Nf5
{[%clk 0:00:17.6]} 58. Bf4 {[%clk 0:00:49.4]} 58... Nd4 {[%clk 0:00:16.8]} 59.
h6 {[%clk 0:00:48.8]} 59... Nf3+ {[%clk 0:00:17.5]} 60. Kf6 {[%clk 0:00:49]}
60... Ba2 {[%clk 0:00:18.4]} 61. h7 {[%clk 0:00:49.1]} 61... Bb1 {[%clk
0:00:19.3]} 62. Rc8+ {[%clk 0:00:49]} 1-0

[Event "*** Titled Tuesday Blitz"]
[Site "Chess.com"]
[Date "2020.10.27"]
[Round "8"]
[White "Harsha_Bharathakoti"]
[Black "Azerichess"]
[Result "0-1"]
[WhiteElo "2819"]
[BlackElo "2992"]
[TimeControl "180+1"]
[EndTime "11:29:33 PDT"]
[Termination "Azerichess won by resignation"]

1. d4 {[%clk 0:03:00.9]} 1... Nf6 {[%clk 0:02:58.7]} 2. c4 {[%clk 0:03:00.9]}
2... g6 {[%clk 0:02:56.7]} 3. Nc3 {[%clk 0:03:00.7]} 3... d5 {[%clk 0:02:56.4]}
4. cxd5 {[%clk 0:03:00.5]} 4... Nxd5 {[%clk 0:02:57.3]} 5. Bd2 {[%clk
0:03:01.2]} 5... Bg7 {[%clk 0:02:56]} 6. e4 {[%clk 0:03:01.3]} 6... Nxc3 {[%clk
0:02:56.4]} 7. Bxc3 {[%clk 0:03:02.2]} 7... O-O {[%clk 0:02:57]} 8. Qd2 {[%clk
0:03:00.6]} 8... b6 {[%clk 0:02:46.9]} 9. Nf3 {[%clk 0:02:56.4]} 9... Bb7 {[%clk
0:02:46.5]} 10. Bd3 {[%clk 0:02:57]} 10... Nd7 {[%clk 0:02:39.1]} 11. O-O {[%clk
0:02:43.9]} 11... e6 {[%clk 0:02:38.8]} 12. b4 {[%clk 0:02:40.2]} 12... Qe7
{[%clk 0:02:36.3]} 13. Qb2 {[%clk 0:02:12.7]} 13... Rfd8 {[%clk 0:02:34]} 14.
Rad1 {[%clk 0:02:09.1]} 14... g5 {[%clk 0:02:08.6]} 15. Rfe1 {[%clk 0:02:03.5]}
15... Nf8 {[%clk 0:02:00.4]} 16. d5 {[%clk 0:01:44.2]} 16... Bxc3 {[%clk
0:01:53.4]} 17. Qxc3 {[%clk 0:01:45.1]} 17... h6 {[%clk 0:01:36.1]} 18. Ne5
{[%clk 0:01:37.3]} 18... f6 {[%clk 0:01:00.1]} 19. Ng4 {[%clk 0:01:32.4]} 19...
Kg7 {[%clk 0:01:00.1]} 20. e5 {[%clk 0:01:19.6]} 20... f5 {[%clk 0:00:59.9]} 21.
d6 {[%clk 0:01:00.9]} 21... Qf7 {[%clk 0:00:59.5]} 22. Ne3 {[%clk 0:00:27.7]}
22... Kg8 {[%clk 0:00:51.2]} 23. dxc7 {[%clk 0:00:18.5]} 23... Rd7 {[%clk
0:00:50.6]} 24. Nc4 {[%clk 0:00:13.1]} 24... Rxc7 {[%clk 0:00:49.6]} 25. Qb2
{[%clk 0:00:13.8]} 25... Qe7 {[%clk 0:00:44.5]} 26. Nd6 {[%clk 0:00:14]} 26...
Ng6 {[%clk 0:00:42.3]} 27. Nxb7 {[%clk 0:00:09]} 27... Rxb7 {[%clk 0:00:43.2]}
28. Bc4 {[%clk 0:00:09.8]} 28... Rc7 {[%clk 0:00:36.8]} 29. Qb3 {[%clk 0:00:10]}
29... Nf8 {[%clk 0:00:31.4]} 30. Rd6 {[%clk 0:00:09.5]} 30... Kf7 {[%clk
0:00:27.6]} 31. Qd3 {[%clk 0:00:09.1]} 31... Kg7 {[%clk 0:00:27.1]} 32. Bb3
{[%clk 0:00:07.5]} 32... Rac8 {[%clk 0:00:26.8]} 33. h4 {[%clk 0:00:08.2]} 33...
Rc3 {[%clk 0:00:26.6]} 34. Qd4 {[%clk 0:00:07]} 34... gxh4 {[%clk 0:00:25.2]}
35. Kh2 {[%clk 0:00:03.2]} 35... R8c7 {[%clk 0:00:22]} 36. Rd1 {[%clk
0:00:03.1]} 36... Kh7 {[%clk 0:00:17]} 37. Rd3 {[%clk 0:00:02.7]} 37... Rxd3
{[%clk 0:00:16.5]} 38. Qxd3 {[%clk 0:00:03.6]} 38... Qg7 {[%clk 0:00:16.9]} 39.
Bxe6 {[%clk 0:00:02.8]} 39... Qxe5+ {[%clk 0:00:16.6]} 40. f4 {[%clk 0:00:01.3]}
40... Qxf4+ {[%clk 0:00:16.4]} 41. Kh3 {[%clk 0:00:01.7]} 41... Nxe6 {[%clk
0:00:15.4]} 42. Rxe6 {[%clk 0:00:01.9]} 42... Rg7 {[%clk 0:00:15.9]} 43. Qf3
{[%clk 0:00:01.5]} 43... Rg3+ {[%clk 0:00:15.1]} 0-1

[Event "*** Titled Tuesday Blitz"]
[Site "Chess.com"]
[Date "2020.10.27"]
[Round "8"]
[White "nochewycandy"]
[Black "MashaFromRussia"]
[Result "1-0"]
[WhiteElo "2556"]
[BlackElo "2376"]
[TimeControl "180+1"]
[EndTime "11:29:37 PDT"]
[Termination "nochewycandy won by resignation"]

1. e4 {[%clk 0:02:58.7]} 1... c5 {[%clk 0:02:56.5]} 2. b3 {[%clk 0:02:52.8]}
2... Nc6 {[%clk 0:02:56.2]} 3. Bb2 {[%clk 0:02:50.4]} 3... e5 {[%clk 0:02:56.7]}
4. Bb5 {[%clk 0:02:45.6]} 4... d6 {[%clk 0:02:56.2]} 5. Ne2 {[%clk 0:02:44]}
5... Bd7 {[%clk 0:02:52.8]} 6. d3 {[%clk 0:02:44.3]} 6... Be7 {[%clk 0:02:45.9]}
7. O-O {[%clk 0:02:44]} 7... a6 {[%clk 0:02:45.2]} 8. Bxc6 {[%clk 0:02:44]} 8...
Bxc6 {[%clk 0:02:46.1]} 9. Nd2 {[%clk 0:02:44.1]} 9... Nf6 {[%clk 0:02:44.1]}
10. h3 {[%clk 0:02:43.8]} 10... O-O {[%clk 0:02:44.3]} 11. f4 {[%clk 0:02:43]}
11... exf4 {[%clk 0:02:42.9]} 12. Nxf4 {[%clk 0:02:43.9]} 12... Qd7 {[%clk
0:02:31.7]} 13. Nf3 {[%clk 0:02:37.6]} 13... Rae8 {[%clk 0:02:23.1]} 14. Qe1
{[%clk 0:02:27.7]} 14... Bd8 {[%clk 0:02:20.2]} 15. Qg3 {[%clk 0:02:26.5]} 15...
b5 {[%clk 0:01:47.7]} 16. Nh4 {[%clk 0:02:20]} 16... Re5 {[%clk 0:01:24.6]} 17.
Nf5 {[%clk 0:02:00.8]} 17... Rxf5 {[%clk 0:01:15.1]} 18. exf5 {[%clk 0:02:01.7]}
18... d5 {[%clk 0:01:16]} 19. Be5 {[%clk 0:01:49.6]} 19... d4 {[%clk 0:01:13.5]}
20. Rae1 {[%clk 0:01:48.4]} 20... Qxf5 {[%clk 0:00:49.7]} 21. Nd5 {[%clk
0:01:40.1]} 21... Qg6 {[%clk 0:00:33.4]} 22. Nxf6+ {[%clk 0:01:19.3]} 22... Bxf6
{[%clk 0:00:22.4]} 23. Qxg6 {[%clk 0:01:11.8]} 23... hxg6 {[%clk 0:00:23.3]} 24.
Bxf6 {[%clk 0:01:11.9]} 24... gxf6 {[%clk 0:00:24.1]} 25. Re7 {[%clk 0:01:12]}
25... Rc8 {[%clk 0:00:25]} 26. Rxf6 {[%clk 0:01:10.2]} 26... Bd5 {[%clk
0:00:25.4]} 27. Rxa6 {[%clk 0:01:09.1]} 27... c4 {[%clk 0:00:25.9]} 28. bxc4
{[%clk 0:01:08.6]} 28... bxc4 {[%clk 0:00:26.8]} 29. Rd6 {[%clk 0:01:08]} 29...
Rc5 {[%clk 0:00:20.4]} 30. dxc4 {[%clk 0:01:05.9]} 30... Bxc4 {[%clk 0:00:18.4]}
31. Rxd4 {[%clk 0:01:06.8]} 31... Bxa2 {[%clk 0:00:18.9]} 32. Rd2 {[%clk
0:01:06.1]} 32... Kg7 {[%clk 0:00:18.9]} 33. Re3 {[%clk 0:01:05.5]} 33... Bb1
{[%clk 0:00:19]} 34. c3 {[%clk 0:01:05.5]} 34... f5 {[%clk 0:00:18.6]} 35. g3
{[%clk 0:01:05.2]} 35... Kf6 {[%clk 0:00:19]} 36. h4 {[%clk 0:01:05.3]} 36...
Be4 {[%clk 0:00:15.9]} 37. g4 {[%clk 0:01:03.4]} 37... Ke5 {[%clk 0:00:15.3]}
38. gxf5 {[%clk 0:00:59.9]} 38... gxf5 {[%clk 0:00:16.2]} 39. h5 {[%clk
0:00:59.2]} 39... Kf4 {[%clk 0:00:16.5]} 40. Rh3 {[%clk 0:00:54.7]} 40... Kg4
{[%clk 0:00:15.3]} 41. Kh2 {[%clk 0:00:50.4]} 41... Ra5 {[%clk 0:00:15.2]} 42.
h6 {[%clk 0:00:50.7]} 42... Ra1 {[%clk 0:00:15.7]} 43. Rg3+ {[%clk 0:00:35.7]}
43... Kh5 {[%clk 0:00:15.1]} 44. Rg1 {[%clk 0:00:35.7]} 44... Ra7 {[%clk
0:00:15.3]} 45. Rd6 {[%clk 0:00:33.3]} 45... Rc7 {[%clk 0:00:15]} 46. Rc1 {[%clk
0:00:31.4]} 46... Rh7 {[%clk 0:00:14.6]} 47. Kg3 {[%clk 0:00:31.1]} 47... Rxh6
{[%clk 0:00:13.5]} 48. Rxh6+ {[%clk 0:00:30.9]} 48... Kxh6 {[%clk 0:00:14.4]}
49. Kf4 {[%clk 0:00:31.5]} 49... Kg6 {[%clk 0:00:15.3]} 50. c4 {[%clk
0:00:31.9]} 50... Kf7 {[%clk 0:00:16.2]} 51. c5 {[%clk 0:00:32.8]} 51... Ke7
{[%clk 0:00:16]} 52. c6 {[%clk 0:00:32.9]} 52... Kd8 {[%clk 0:00:16.6]} 53. c7+
{[%clk 0:00:32.5]} 53... Kc8 {[%clk 0:00:17.1]} 54. Ke5 {[%clk 0:00:33]} 54...
Bg2 {[%clk 0:00:16.6]} 55. Kd6 {[%clk 0:00:33.2]} 55... f4 {[%clk 0:00:17]} 56.
Rb1 {[%clk 0:00:33.4]} 56... Bb7 {[%clk 0:00:17.4]} 57. Rg1 {[%clk 0:00:31.1]}
1-0

[Event "*** Titled Tuesday Blitz"]
[Site "Chess.com"]
[Date "2020.10.27"]
[Round "8"]
[White "mjray79"]
[Black "BJthechessgod"]
[Result "1-0"]
[WhiteElo "2451"]
[BlackElo "2298"]
[TimeControl "180+1"]
[EndTime "11:29:37 PDT"]
[Termination "mjray79 won by resignation"]

1. d4 {[%clk 0:03:00.9]} 1... Nf6 {[%clk 0:02:59.6]} 2. c4 {[%clk 0:03:01.3]}
2... e6 {[%clk 0:03:00.2]} 3. g3 {[%clk 0:03:01]} 3... Be7 {[%clk 0:02:59.3]} 4.
Bg2 {[%clk 0:03:01]} 4... O-O {[%clk 0:03:00.2]} 5. Nf3 {[%clk 0:03:00.2]} 5...
d5 {[%clk 0:02:59.5]} 6. O-O {[%clk 0:03:00]} 6... b6 {[%clk 0:02:59.8]} 7. Qc2
{[%clk 0:03:00]} 7... Bb7 {[%clk 0:03:00.2]} 8. cxd5 {[%clk 0:02:58.9]} 8...
Bxd5 {[%clk 0:02:58.9]} 9. Nc3 {[%clk 0:02:58.3]} 9... Bb7 {[%clk 0:02:58.9]}
10. e4 {[%clk 0:02:57.7]} 10... Nbd7 {[%clk 0:02:59.4]} 11. Rd1 {[%clk
0:02:57.2]} 11... c5 {[%clk 0:02:57.1]} 12. Bf4 {[%clk 0:02:54.3]} 12... cxd4
{[%clk 0:02:46.2]} 13. Rxd4 {[%clk 0:02:39.8]} 13... Qc8 {[%clk 0:02:41.4]} 14.
Rad1 {[%clk 0:02:37.8]} 14... Bc5 {[%clk 0:02:27.3]} 15. R4d2 {[%clk 0:02:33.6]}
15... Rd8 {[%clk 0:02:19.3]} 16. e5 {[%clk 0:02:19.5]} 16... Nd5 {[%clk
0:02:09.9]} 17. Ng5 {[%clk 0:01:52.5]} 17... Nf8 {[%clk 0:01:52.9]} 18. Nxd5
{[%clk 0:01:42.5]} 18... Bxd5 {[%clk 0:01:49.7]} 19. Bxd5 {[%clk 0:01:42.4]}
19... Rxd5 {[%clk 0:01:50.6]} 20. Rxd5 {[%clk 0:01:42.8]} 20... exd5 {[%clk
0:01:51.5]} 21. Rxd5 {[%clk 0:01:43]} 21... h6 {[%clk 0:01:33.9]} 22. Ne4 {[%clk
0:01:34.9]} 22... Ne6 {[%clk 0:01:21.9]} 23. Nxc5 {[%clk 0:01:28.9]} 23... bxc5
{[%clk 0:01:18.1]} 24. Be3 {[%clk 0:01:27.8]} 24... Qb7 {[%clk 0:01:00.8]} 25.
Qd2 {[%clk 0:01:14.8]} 25... Rb8 {[%clk 0:00:52.9]} 26. b3 {[%clk 0:01:09.7]}
26... c4 {[%clk 0:00:43.1]} 27. bxc4 {[%clk 0:00:58.9]} 27... Qb1+ {[%clk
0:00:39.9]} 28. Qd1 {[%clk 0:00:57.3]} 28... Qe4 {[%clk 0:00:40.3]} 29. Rb5
{[%clk 0:00:47.8]} 29... Rd8 {[%clk 0:00:25.2]} 30. Rd5 {[%clk 0:00:41]} 30...
Rb8 {[%clk 0:00:24.4]} 31. Rb5 {[%clk 0:00:35.3]} 31... Rd8 {[%clk 0:00:23]} 32.
Qb3 {[%clk 0:00:30]} 32... Qf3 {[%clk 0:00:20.6]} 33. Rb8 {[%clk 0:00:26.2]}
33... Rxb8 {[%clk 0:00:12.2]} 34. Qxb8+ {[%clk 0:00:27.1]} 34... Kh7 {[%clk
0:00:12.3]} 35. Qb1+ {[%clk 0:00:26.8]} 35... g6 {[%clk 0:00:12.1]} 36. c5
{[%clk 0:00:25.4]} 36... Qd5 {[%clk 0:00:11.1]} 37. Qc2 {[%clk 0:00:22.3]} 37...
Qxe5 {[%clk 0:00:10.7]} 38. c6 {[%clk 0:00:22.1]} 38... Qc7 {[%clk 0:00:11.4]}
39. Qc3 {[%clk 0:00:19.6]} 39... Nd8 {[%clk 0:00:11.8]} 40. Bf4 {[%clk
0:00:17.5]} 40... Qxc6 {[%clk 0:00:11.3]} 41. Qe3 {[%clk 0:00:16.1]} 41... Qe6
{[%clk 0:00:11.3]} 42. Qxa7 {[%clk 0:00:15.4]} 42... Qe1+ {[%clk 0:00:11.3]} 43.
Kg2 {[%clk 0:00:15.3]} 43... Qe4+ {[%clk 0:00:12.2]} 44. f3 {[%clk 0:00:15.6]}
44... Qe2+ {[%clk 0:00:12.5]} 45. Qf2 {[%clk 0:00:16]} 45... Qa6 {[%clk
0:00:12.7]} 46. Qd2 {[%clk 0:00:15.7]} 46... Ne6 {[%clk 0:00:13.1]} 47. Bxh6
{[%clk 0:00:15.7]} 47... Qa5 {[%clk 0:00:09.1]} 48. Qxa5 {[%clk 0:00:14.5]}
48... Kxh6 {[%clk 0:00:09.5]} 49. Qb4 {[%clk 0:00:13.6]} 49... Kg7 {[%clk
0:00:10.4]} 50. a4 {[%clk 0:00:14]} 50... Nc7 {[%clk 0:00:09.3]} 51. a5 {[%clk
0:00:14]} 51... Nd5 {[%clk 0:00:10.2]} 52. Qd4+ {[%clk 0:00:13.8]} 52... Nf6
{[%clk 0:00:10]} 53. Qxf6+ {[%clk 0:00:13.6]} 1-0

[Event "*** Titled Tuesday Blitz"]
[Site "Chess.com"]
[Date "2020.10.27"]
[Round "8"]
[White "Sueetin"]
[Black "Kapibara_Warri0r"]
[Result "1-0"]
[WhiteElo "2308"]
[BlackElo "2125"]
[TimeControl "180+1"]
[EndTime "11:29:37 PDT"]
[Termination "Sueetin won on time"]

1. d4 {[%clk 0:03:00.9]} 1... Nf6 {[%clk 0:02:58.1]} 2. c4 {[%clk 0:03:00.6]}
2... g6 {[%clk 0:02:58.2]} 3. Nc3 {[%clk 0:03:00.6]} 3... Bg7 {[%clk 0:02:58.5]}
4. Nf3 {[%clk 0:02:59.9]} 4... O-O {[%clk 0:02:58.3]} 5. Bg5 {[%clk 0:03:00]}
5... d5 {[%clk 0:02:52.6]} 6. Bxf6 {[%clk 0:02:49.8]} 6... Bxf6 {[%clk
0:02:50.1]} 7. cxd5 {[%clk 0:02:49.5]} 7... c6 {[%clk 0:02:49.2]} 8. e3 {[%clk
0:02:41.7]} 8... cxd5 {[%clk 0:02:48.6]} 9. Bd3 {[%clk 0:02:36.8]} 9... b6
{[%clk 0:02:46.2]} 10. h3 {[%clk 0:02:34.2]} 10... Ba6 {[%clk 0:02:45.2]} 11.
O-O {[%clk 0:02:33.9]} 11... Bxd3 {[%clk 0:02:41.9]} 12. Qxd3 {[%clk 0:02:34.8]}
12... Nc6 {[%clk 0:02:41.7]} 13. Qb5 {[%clk 0:02:27.3]} 13... Qd7 {[%clk
0:02:07.9]} 14. Nxd5 {[%clk 0:02:21.7]} 14... Bg7 {[%clk 0:02:04.8]} 15. Rac1
{[%clk 0:02:19]} 15... Rac8 {[%clk 0:01:53.8]} 16. Rxc6 {[%clk 0:01:58.1]} 16...
e6 {[%clk 0:01:45.2]} 17. Rfc1 {[%clk 0:01:56.2]} 17... exd5 {[%clk 0:01:40.6]}
18. a4 {[%clk 0:01:48.9]} 18... a6 {[%clk 0:01:16.9]} 19. Qxb6 {[%clk
0:01:39.4]} 19... Rb8 {[%clk 0:01:16.5]} 20. Qxa6 {[%clk 0:01:33.7]} 20... Rxb2
{[%clk 0:01:15.4]} 21. R6c2 {[%clk 0:01:33.3]} 21... Rb3 {[%clk 0:01:11.5]} 22.
Qc6 {[%clk 0:01:28.2]} 22... Qf5 {[%clk 0:01:09.6]} 23. a5 {[%clk 0:01:08.4]}
23... Ra3 {[%clk 0:01:06.1]} 24. a6 {[%clk 0:01:00.1]} 24... Qd3 {[%clk
0:01:04.3]} 25. Qxd5 {[%clk 0:00:50.2]} 25... Qxa6 {[%clk 0:01:02.8]} 26. Qc4
{[%clk 0:00:36.9]} 26... Qa5 {[%clk 0:00:59.4]} 27. Qc5 {[%clk 0:00:36.6]} 27...
Qa6 {[%clk 0:00:58.9]} 28. Qc6 {[%clk 0:00:36.4]} 28... Qa5 {[%clk 0:00:58.6]}
29. Rc5 {[%clk 0:00:35.3]} 29... Qa7 {[%clk 0:00:55.8]} 30. Qc7 {[%clk
0:00:34.7]} 30... Qa4 {[%clk 0:00:52.4]} 31. Qc6 {[%clk 0:00:33.9]} 31... Qa7
{[%clk 0:00:51.6]} 32. Qd5 {[%clk 0:00:31.3]} 32... Ra2 {[%clk 0:00:41.4]} 33.
R5c2 {[%clk 0:00:31]} 33... Ra3 {[%clk 0:00:37]} 34. Rc7 {[%clk 0:00:30.7]}
34... Qa4 {[%clk 0:00:35.1]} 35. Ng5 {[%clk 0:00:29]} 35... Ra1 {[%clk
0:00:30.5]} 36. Rxa1 {[%clk 0:00:24.1]} 36... Qxa1+ {[%clk 0:00:31.4]} 37. Kh2
{[%clk 0:00:24.5]} 37... Qf1 {[%clk 0:00:05.7]} 38. Qf3 {[%clk 0:00:13.1]} 38...
Qb5 {[%clk 0:00:04.1]} 39. Ne4 {[%clk 0:00:07.3]} 39... Qb8 {[%clk 0:00:03.6]}
40. Qg3 {[%clk 0:00:06.8]} 40... Re8 {[%clk 0:00:02.1]} 41. Rd7 {[%clk 0:00:07]}
1-0